[Event "*** MasterClass Titled Tuesday Blitz"]
[Site "Chess.com"]
[Date "2017.10.03"]
[Round "2"]
[White "Muisback26"]
[Black "wonderfultime"]
[Result "1-0"]
[WhiteElo "2636"]
[BlackElo "2567"]
[TimeControl "180+2"]
[EndTime "13:25:15 PDT"]
[Termination "Muisback26 won by resignation"]

1. e4 {[%clk 0:03:01.9]} 1... e6 {[%clk 0:02:59.7]} 2. d4 {[%clk 0:02:59.5]}
2... d5 {[%clk 0:03:00.7]} 3. Nd2 {[%clk 0:03:00.8]} 3... c5 {[%clk 0:03:01.4]}
4. exd5 {[%clk 0:03:01]} 4... Qxd5 {[%clk 0:03:01.1]} 5. Ngf3 {[%clk 0:03:01.7]}
5... cxd4 {[%clk 0:02:59.2]} 6. Bc4 {[%clk 0:03:02.8]} 6... Qd7 {[%clk
0:03:00.7]} 7. O-O {[%clk 0:03:03.6]} 7... Nf6 {[%clk 0:03:02.1]} 8. Nb3 {[%clk
0:03:04.9]} 8... Nc6 {[%clk 0:03:03.4]} 9. Nbxd4 {[%clk 0:03:05.9]} 9... Nxd4
{[%clk 0:03:04.8]} 10. Nxd4 {[%clk 0:03:06.7]} 10... a6 {[%clk 0:03:06.3]} 11.
Re1 {[%clk 0:03:04.5]} 11... Qc7 {[%clk 0:02:51.7]} 12. Bd3 {[%clk 0:03:04]}
12... Be7 {[%clk 0:02:47.3]} 13. Bg5 {[%clk 0:03:00.7]} 13... O-O {[%clk
0:02:45.6]} 14. Qf3 {[%clk 0:03:00.4]} 14... Qc5 {[%clk 0:02:33.9]} 15. Be3
{[%clk 0:02:46.4]} 15... Qd5 {[%clk 0:02:27.2]} 16. Qe2 {[%clk 0:02:36.3]} 16...
b5 {[%clk 0:02:22.4]} 17. c4 {[%clk 0:02:36]} 17... bxc4 {[%clk 0:02:17.6]} 18.
Bxc4 {[%clk 0:02:37.9]} 18... Qb7 {[%clk 0:02:11.1]} 19. Bf4 {[%clk 0:02:31.9]}
19... Bd7 {[%clk 0:02:06.7]} 20. Be5 {[%clk 0:02:32.6]} 20... Rfc8 {[%clk
0:02:06.6]} 21. b3 {[%clk 0:02:32.8]} 21... Rc5 {[%clk 0:01:55.4]} 22. Rad1
{[%clk 0:02:31.9]} 22... Bb5 {[%clk 0:01:36.8]} 23. Nxb5 {[%clk 0:01:54.3]}
23... axb5 {[%clk 0:01:36.2]} 24. Bd3 {[%clk 0:01:55.8]} 24... Rd8 {[%clk
0:00:25.1]} 25. h3 {[%clk 0:01:24.1]} 25... b4 {[%clk 0:00:22.8]} 26. Bc4 {[%clk
0:01:22.5]} 26... h6 {[%clk 0:00:18.9]} 27. Rxd8+ {[%clk 0:01:19.8]} 27... Bxd8
{[%clk 0:00:20.8]} 28. Bd4 {[%clk 0:01:17.2]} 28... Rg5 {[%clk 0:00:20.6]} 29.
g3 {[%clk 0:01:12.4]} 29... Bb6 {[%clk 0:00:21.7]} 30. h4 {[%clk 0:01:03.8]}
30... Rg4 {[%clk 0:00:20.9]} 31. Bxb6 {[%clk 0:00:59.3]} 31... Qxb6 {[%clk
0:00:22.8]} 32. Rd1 {[%clk 0:00:59.4]} 32... Rxg3+ {[%clk 0:00:23.4]} 33. Kf1
{[%clk 0:01:00.1]} 33... Rh3 {[%clk 0:00:21.2]} 34. Kg2 {[%clk 0:00:49.8]} 34...
Rxh4 {[%clk 0:00:22]} 35. Qf3 {[%clk 0:00:51.2]} 35... Rg4+ {[%clk 0:00:23.2]}
36. Kf1 {[%clk 0:00:51.1]} 36... Rg5 {[%clk 0:00:24]} 37. Qa8+ {[%clk
0:00:48.9]} 37... Kh7 {[%clk 0:00:25.3]} 38. Rd8 {[%clk 0:00:50.4]} 38... Ne4
{[%clk 0:00:24.7]} 39. Qxe4+ {[%clk 0:00:48.4]} 39... Rf5 {[%clk 0:00:26.2]} 40.
Rd2 {[%clk 0:00:48.1]} 40... g6 {[%clk 0:00:27.5]} 41. Kg2 {[%clk 0:00:38.6]}
41... h5 {[%clk 0:00:27.5]} 42. Kg1 {[%clk 0:00:20.5]} 42... Rg5+ {[%clk
0:00:28.5]} 43. Kf1 {[%clk 0:00:21.1]} 43... Rf5 {[%clk 0:00:30.4]} 44. Bd3
{[%clk 0:00:21.9]} 44... Rd5 {[%clk 0:00:23.7]} 45. Qf3 {[%clk 0:00:21.4]} 45...
Kg7 {[%clk 0:00:24.1]} 46. Rd1 {[%clk 0:00:20.7]} 46... Rc5 {[%clk 0:00:19.4]}
47. Be4 {[%clk 0:00:20.8]} 47... Qc7 {[%clk 0:00:19.4]} 48. Kg2 {[%clk
0:00:20.7]} 48... Rg5+ {[%clk 0:00:19.6]} 49. Kf1 {[%clk 0:00:20.9]} 49... Qh2
{[%clk 0:00:20.6]} 50. Rd7 {[%clk 0:00:17.3]} 50... Rg1+ {[%clk 0:00:16.1]} 51.
Ke2 {[%clk 0:00:17.9]} 51... Kh6 {[%clk 0:00:15]} 52. Qxf7 {[%clk 0:00:18.2]}
52... Rg4 {[%clk 0:00:12.4]} 53. Qf8+ {[%clk 0:00:17.6]} 53... Kg5 {[%clk
0:00:12.5]} 54. Qe7+ {[%clk 0:00:18]} 54... Kh6 {[%clk 0:00:09.4]} 55. Qg7+
{[%clk 0:00:18]} 55... Kg5 {[%clk 0:00:10.9]} 56. Qxg6+ {[%clk 0:00:18.5]} 56...
Kh4 {[%clk 0:00:11.6]} 57. Qf6+ {[%clk 0:00:18.4]} 57... Kh3 {[%clk 0:00:12.9]}
58. Rd3+ {[%clk 0:00:19.1]} 1-0

[Event "*** MasterClass Titled Tuesday Blitz"]
[Site "Chess.com"]
[Date "2017.10.03"]
[Round "2"]
[White "GrigorGrigorov"]
[Black "maciek_92"]
[Result "1-0"]
[WhiteElo "2713"]
[BlackElo "2532"]
[TimeControl "180+2"]
[EndTime "13:25:19 PDT"]
[Termination "GrigorGrigorov won by resignation"]

1. d4 {[%clk 0:03:01.9]} 1... Nf6 {[%clk 0:03:00.5]} 2. c4 {[%clk 0:03:02.2]}
2... e6 {[%clk 0:03:00.6]} 3. Nf3 {[%clk 0:03:02.2]} 3... b6 {[%clk 0:03:01.5]}
4. g3 {[%clk 0:03:02.7]} 4... Bb7 {[%clk 0:03:01.2]} 5. Bg2 {[%clk 0:03:03.4]}
5... Be7 {[%clk 0:03:00.3]} 6. O-O {[%clk 0:03:04.2]} 6... O-O {[%clk
0:03:01.9]} 7. Nc3 {[%clk 0:03:04.9]} 7... Ne4 {[%clk 0:03:02.1]} 8. Bd2 {[%clk
0:03:06.4]} 8... d5 {[%clk 0:02:56.3]} 9. cxd5 {[%clk 0:03:05.7]} 9... exd5
{[%clk 0:02:58.2]} 10. Rc1 {[%clk 0:03:06]} 10... Nxc3 {[%clk 0:02:51.4]} 11.
Bxc3 {[%clk 0:02:55.4]} 11... a5 {[%clk 0:02:51.9]} 12. Ne5 {[%clk 0:02:54.9]}
12... Nd7 {[%clk 0:02:51.6]} 13. Nd3 {[%clk 0:02:54]} 13... Bd6 {[%clk
0:02:49.9]} 14. Bd2 {[%clk 0:02:51.9]} 14... Nf6 {[%clk 0:02:45]} 15. Bf4 {[%clk
0:02:51.6]} 15... Re8 {[%clk 0:02:34.7]} 16. Bxd6 {[%clk 0:02:52.1]} 16... Qxd6
{[%clk 0:02:34.9]} 17. e3 {[%clk 0:02:53.6]} 17... h6 {[%clk 0:02:19.2]} 18. Qc2
{[%clk 0:02:46.5]} 18... Re7 {[%clk 0:02:20]} 19. Nf4 {[%clk 0:02:38.3]} 19...
a4 {[%clk 0:02:12.1]} 20. Rfd1 {[%clk 0:02:38.9]} 20... Ra5 {[%clk 0:01:59.8]}
21. Rd3 {[%clk 0:02:34.5]} 21... g5 {[%clk 0:01:40.3]} 22. Ne2 {[%clk
0:02:32.5]} 22... c6 {[%clk 0:01:18.1]} 23. Ra3 {[%clk 0:02:27.4]} 23... b5
{[%clk 0:01:16.1]} 24. Rc3 {[%clk 0:02:21]} 24... Ra8 {[%clk 0:01:15.1]} 25. Qd1
{[%clk 0:02:02]} 25... Rae8 {[%clk 0:01:11.3]} 26. a3 {[%clk 0:01:43.5]} 26...
Kg7 {[%clk 0:01:11.2]} 27. R1c2 {[%clk 0:01:43.4]} 27... h5 {[%clk 0:01:02]} 28.
Nc1 {[%clk 0:01:43]} 28... h4 {[%clk 0:01:01.2]} 29. Nd3 {[%clk 0:01:42.6]}
29... Rh8 {[%clk 0:00:58.3]} 30. Ne5 {[%clk 0:01:41.6]} 30... Rxe5 {[%clk
0:00:55.2]} 31. dxe5 {[%clk 0:01:40.8]} 31... Qxe5 {[%clk 0:00:57.1]} 32. Qd4
{[%clk 0:01:35]} 32... Qf5 {[%clk 0:00:48]} 33. f3 {[%clk 0:01:17.9]} 33... hxg3
{[%clk 0:00:41.9]} 34. hxg3 {[%clk 0:01:18.6]} 34... Rh6 {[%clk 0:00:41.5]} 35.
g4 {[%clk 0:01:17.4]} 35... Qe6 {[%clk 0:00:40.6]} 36. Rc1 {[%clk 0:01:14.1]}
36... Qd6 {[%clk 0:00:27.4]} 37. Kf2 {[%clk 0:01:08.5]} 37... Kg6 {[%clk
0:00:28.3]} 38. Qd3+ {[%clk 0:01:05]} 38... Kg7 {[%clk 0:00:28.8]} 39. Qf5
{[%clk 0:01:03.9]} 39... Rg6 {[%clk 0:00:23.3]} 40. Qd3 {[%clk 0:00:41.4]} 40...
Rh6 {[%clk 0:00:21.5]} 41. R3c2 {[%clk 0:00:33.2]} 41... Qe5 {[%clk 0:00:18.2]}
42. Qf5 {[%clk 0:00:29.6]} 42... Qxf5 {[%clk 0:00:15.8]} 43. gxf5 {[%clk
0:00:31.5]} 43... Rh8 {[%clk 0:00:16.4]} 44. e4 {[%clk 0:00:32]} 44... dxe4
{[%clk 0:00:16.4]} 45. fxe4 {[%clk 0:00:33.2]} 45... Ng4+ {[%clk 0:00:18.1]} 46.
Kg3 {[%clk 0:00:32.4]} 46... Ne5 {[%clk 0:00:19.6]} 47. Rd1 {[%clk 0:00:32.5]}
47... Nc4 {[%clk 0:00:13.4]} 48. Rd7 {[%clk 0:00:25]} 48... Ba8 {[%clk
0:00:12.7]} 49. Bf1 {[%clk 0:00:21.7]} 49... Ne5 {[%clk 0:00:11.9]} 50. Rc7
{[%clk 0:00:21.5]} 50... Rd8 {[%clk 0:00:09.8]} 51. Be2 {[%clk 0:00:22]} 51...
Kf6 {[%clk 0:00:10.4]} 52. Kf2 {[%clk 0:00:22.2]} 52... g4 {[%clk 0:00:10.8]}
53. Ke3 {[%clk 0:00:22.6]} 53... Kg5 {[%clk 0:00:11.9]} 54. Re7 {[%clk
0:00:21.8]} 54... f6 {[%clk 0:00:12]} 55. Rg7+ {[%clk 0:00:22.3]} 55... Kh4
{[%clk 0:00:13.3]} 56. Rc1 {[%clk 0:00:23.8]} 56... Kg3 {[%clk 0:00:14]} 57.
Rg1+ {[%clk 0:00:23.6]} 57... Kh2 {[%clk 0:00:15.1]} 58. Kf2 {[%clk 0:00:23.2]}
58... Rh8 {[%clk 0:00:12]} 59. Rg2+ {[%clk 0:00:20.9]} 59... Kh3 {[%clk
0:00:12.5]} 60. Bxg4+ {[%clk 0:00:21.6]} 60... Nxg4+ {[%clk 0:00:14]} 61. R7xg4
{[%clk 0:00:22.9]} 1-0

[Event "*** MasterClass Titled Tuesday Blitz"]
[Site "Chess.com"]
[Date "2017.10.03"]
[Round "2"]
[White "igorkovalenko"]
[Black "Krasimir_Rusev"]
[Result "0-1"]
[WhiteElo "2726"]
[BlackElo "2537"]
[TimeControl "180+2"]
[EndTime "13:25:24 PDT"]
[Termination "Krasimir_Rusev won by checkmate"]

1. e4 {[%clk 0:02:45.4]} 1... d6 {[%clk 0:02:58.9]} 2. d4 {[%clk 0:02:45.6]}
2... Nf6 {[%clk 0:03:00.3]} 3. Nc3 {[%clk 0:02:46.6]} 3... e5 {[%clk 0:03:01.8]}
4. Nf3 {[%clk 0:02:47.1]} 4... exd4 {[%clk 0:03:02.4]} 5. Nxd4 {[%clk
0:02:48.2]} 5... Be7 {[%clk 0:03:04]} 6. Be2 {[%clk 0:02:49.3]} 6... O-O {[%clk
0:03:05.5]} 7. O-O {[%clk 0:02:50.9]} 7... Re8 {[%clk 0:03:07.1]} 8. Re1 {[%clk
0:02:51.7]} 8... Bf8 {[%clk 0:03:08.3]} 9. Bf3 {[%clk 0:02:52.9]} 9... Nbd7
{[%clk 0:03:09.7]} 10. a4 {[%clk 0:02:49.7]} 10... a5 {[%clk 0:03:09.6]} 11. b3
{[%clk 0:02:49.8]} 11... c6 {[%clk 0:03:10.8]} 12. Bb2 {[%clk 0:02:50.7]} 12...
Nc5 {[%clk 0:03:09]} 13. h3 {[%clk 0:02:50.5]} 13... Bd7 {[%clk 0:03:08.2]} 14.
Qd2 {[%clk 0:02:51.1]} 14... Qb6 {[%clk 0:03:08]} 15. Rad1 {[%clk 0:02:51.3]}
15... Rad8 {[%clk 0:03:09.2]} 16. Ba1 {[%clk 0:02:52.1]} 16... Bc8 {[%clk
0:03:09.6]} 17. Kh2 {[%clk 0:02:52.2]} 17... g6 {[%clk 0:03:09.5]} 18. g3 {[%clk
0:02:52.9]} 18... h5 {[%clk 0:03:09.3]} 19. Bg2 {[%clk 0:02:49.8]} 19... Bg7
{[%clk 0:03:08.6]} 20. f4 {[%clk 0:02:50]} 20... Rd7 {[%clk 0:03:04.8]} 21. Bf3
{[%clk 0:02:50.8]} 21... Rde7 {[%clk 0:03:04.2]} 22. Qg2 {[%clk 0:02:47.2]}
22... Qc7 {[%clk 0:02:41.5]} 23. Kh1 {[%clk 0:02:44.9]} 23... Bh6 {[%clk
0:02:36.8]} 24. Ndb5 {[%clk 0:02:20.7]} 24... cxb5 {[%clk 0:01:49.2]} 25. Nxb5
{[%clk 0:02:22.6]} 25... Qb8 {[%clk 0:01:31.8]} 26. Bxf6 {[%clk 0:02:22.2]}
26... Rd7 {[%clk 0:01:32.9]} 27. Bd4 {[%clk 0:02:09.6]} 27... Bg7 {[%clk
0:01:29.2]} 28. Bxg7 {[%clk 0:02:09.7]} 28... Kxg7 {[%clk 0:01:29.6]} 29. Re2
{[%clk 0:02:06.7]} 29... b6 {[%clk 0:01:27.8]} 30. Nc3 {[%clk 0:02:06.7]} 30...
Ba6 {[%clk 0:01:27.4]} 31. Red2 {[%clk 0:02:07.1]} 31... Bb7 {[%clk 0:01:27.7]}
32. Rd4 {[%clk 0:02:06.3]} 32... Bc6 {[%clk 0:01:22.2]} 33. e5 {[%clk
0:01:57.4]} 33... dxe5 {[%clk 0:01:04.6]} 34. Rxd7 {[%clk 0:01:49]} 34... Bxd7
{[%clk 0:01:02.5]} 35. Ne4 {[%clk 0:01:43.4]} 35... Nxe4 {[%clk 0:00:51]} 36.
Bxe4 {[%clk 0:01:44.4]} 36... Be6 {[%clk 0:00:35.9]} 37. f5 {[%clk 0:01:41.4]}
37... Bxf5 {[%clk 0:00:34.9]} 38. Bxf5 {[%clk 0:01:42.2]} 38... gxf5 {[%clk
0:00:36.8]} 39. Qf3 {[%clk 0:01:43.7]} 39... Kg6 {[%clk 0:00:29.3]} 40. g4
{[%clk 0:01:18.7]} 40... hxg4 {[%clk 0:00:24.6]} 41. hxg4 {[%clk 0:01:20]} 41...
Qc8 {[%clk 0:00:20.8]} 42. Rd6+ {[%clk 0:01:18]} 42... Kg5 {[%clk 0:00:19.4]}
43. c4 {[%clk 0:01:00.7]} 43... f4 {[%clk 0:00:18.4]} 44. Rd2 {[%clk 0:00:51.9]}
44... Rh8+ {[%clk 0:00:17.8]} 45. Kg1 {[%clk 0:00:52.7]} 45... Rh4 {[%clk
0:00:19.4]} 46. Qd5 {[%clk 0:00:45.3]} 46... Rxg4+ {[%clk 0:00:18.9]} 47. Kf1
{[%clk 0:00:46.1]} 47... Qf5 {[%clk 0:00:18.8]} 48. Qd8+ {[%clk 0:00:45.1]}
48... Qf6 {[%clk 0:00:20.4]} 49. Qg8+ {[%clk 0:00:43.9]} 49... Kf5 {[%clk
0:00:22]} 50. Qc8+ {[%clk 0:00:40]} 50... Qe6 {[%clk 0:00:23.2]} 51. Qc7 {[%clk
0:00:24.2]} 51... Qg6 {[%clk 0:00:16.2]} 52. Qc8+ {[%clk 0:00:25.3]} 52... Kg5
{[%clk 0:00:17.1]} 53. Qd8+ {[%clk 0:00:24.8]} 53... Qf6 {[%clk 0:00:17.7]} 54.
Qg8+ {[%clk 0:00:25.1]} 54... Qg6 {[%clk 0:00:19]} 55. Qd8+ {[%clk 0:00:25.8]}
55... Kf5 {[%clk 0:00:20.4]} 56. Qc8+ {[%clk 0:00:21.3]} 56... Qe6 {[%clk
0:00:21.4]} 57. Qc7 {[%clk 0:00:20.6]} 57... Rg6 {[%clk 0:00:21.4]} 58. Rd7
{[%clk 0:00:19.9]} 58... Rf6 {[%clk 0:00:21.6]} 59. Rd5 {[%clk 0:00:19.2]} 59...
f3 {[%clk 0:00:19.1]} 60. Qb7 {[%clk 0:00:19.5]} 60... Kf4 {[%clk 0:00:20.1]}
61. c5 {[%clk 0:00:19.7]} 61... Rh6 {[%clk 0:00:20.8]} 62. Rd6 {[%clk
0:00:20.2]} 62... Qh3+ {[%clk 0:00:21]} 63. Ke1 {[%clk 0:00:21.4]} 63... Qg3+
{[%clk 0:00:22.1]} 64. Kd2 {[%clk 0:00:22.7]} 64... Rh2+ {[%clk 0:00:23.5]} 65.
Kd3 {[%clk 0:00:24.2]} 65... f2+ {[%clk 0:00:24.3]} 66. Kc4 {[%clk 0:00:24.4]}
66... f1=Q+ {[%clk 0:00:25.2]} 67. Kd5 {[%clk 0:00:25.9]} 67... Qgg2# {[%clk
0:00:25.5]} 0-1

[Event "*** MasterClass Titled Tuesday Blitz"]
[Site "Chess.com"]
[Date "2017.10.03"]
[Round "2"]
[White "vanea_03"]
[Black "SCIM"]
[Result "1/2-1/2"]
[WhiteElo "2459"]
[BlackElo "2419"]
[TimeControl "180+2"]
[EndTime "13:25:25 PDT"]
[Termination "Game drawn - insufficient material"]

1. d4 {[%clk 0:03:01.9]} 1... Nf6 {[%clk 0:03:00.2]} 2. c4 {[%clk 0:03:03]} 2...
g6 {[%clk 0:03:00.7]} 3. Nc3 {[%clk 0:03:04]} 3... d5 {[%clk 0:03:01.5]} 4. cxd5
{[%clk 0:03:05.9]} 4... Nxd5 {[%clk 0:03:01.9]} 5. e4 {[%clk 0:03:07.4]} 5...
Nxc3 {[%clk 0:03:02.7]} 6. bxc3 {[%clk 0:03:09.3]} 6... Bg7 {[%clk 0:03:03.9]}
7. Nf3 {[%clk 0:03:10.6]} 7... c5 {[%clk 0:03:04.4]} 8. Be3 {[%clk 0:03:11.7]}
8... O-O {[%clk 0:03:01.2]} 9. Be2 {[%clk 0:03:12.4]} 9... Qa5 {[%clk
0:03:00.9]} 10. O-O {[%clk 0:03:01]} 10... Qxc3 {[%clk 0:03:00.2]} 11. Rc1
{[%clk 0:03:01.2]} 11... Qa3 {[%clk 0:02:58.5]} 12. Rxc5 {[%clk 0:02:59.9]}
12... Qxa2 {[%clk 0:02:50.2]} 13. d5 {[%clk 0:02:48.7]} 13... Bg4 {[%clk
0:02:26.1]} 14. Rc7 {[%clk 0:02:46.7]} 14... Nd7 {[%clk 0:02:17.5]} 15. Rxb7
{[%clk 0:02:41.6]} 15... Rfb8 {[%clk 0:02:14.3]} 16. Rc7 {[%clk 0:02:25.5]}
16... Rc8 {[%clk 0:02:14.8]} 17. Rxc8+ {[%clk 0:02:23.5]} 17... Rxc8 {[%clk
0:02:13.1]} 18. h3 {[%clk 0:02:24]} 18... Bxf3 {[%clk 0:02:12.7]} 19. Bxf3
{[%clk 0:02:25.9]} 19... a5 {[%clk 0:02:09.4]} 20. Bg4 {[%clk 0:02:24.3]} 20...
Rc7 {[%clk 0:02:03.4]} 21. d6 {[%clk 0:02:05]} 21... exd6 {[%clk 0:01:20.6]} 22.
Qxd6 {[%clk 0:02:06.9]} 22... Be5 {[%clk 0:01:21.2]} 23. Qe7 {[%clk 0:02:07.7]}
23... Bf6 {[%clk 0:01:11]} 24. Qe8+ {[%clk 0:01:59.2]} 24... Nf8 {[%clk
0:01:11.1]} 25. Bh6 {[%clk 0:01:57.2]} 25... Qa3 {[%clk 0:01:10.1]} 26. e5
{[%clk 0:01:48.8]} 26... Bg7 {[%clk 0:00:58.8]} 27. Bg5 {[%clk 0:01:47.6]} 27...
h6 {[%clk 0:00:53.3]} 28. Bd8 {[%clk 0:01:43.3]} 28... Rc1 {[%clk 0:00:42.9]}
29. Be2 {[%clk 0:01:14.9]} 29... Rxf1+ {[%clk 0:00:42.5]} 30. Bxf1 {[%clk
0:01:16.8]} 30... Qc5 {[%clk 0:00:34.3]} 31. Qa4 {[%clk 0:00:45.6]} 31... Qxe5
{[%clk 0:00:33.3]} 32. Qxa5 {[%clk 0:00:46]} 32... Qxa5 {[%clk 0:00:31]} 33.
Bxa5 {[%clk 0:00:47.9]} 33... Ne6 {[%clk 0:00:31.9]} 34. Bd2 {[%clk 0:00:49.3]}
34... h5 {[%clk 0:00:31.3]} 35. Bc4 {[%clk 0:00:50.2]} 35... Nd4 {[%clk
0:00:30]} 36. Kf1 {[%clk 0:00:49.8]} 36... Bf6 {[%clk 0:00:29]} 37. Bd5 {[%clk
0:00:44.7]} 37... Kg7 {[%clk 0:00:29.3]} 38. Be3 {[%clk 0:00:43.8]} 38... Nc2
{[%clk 0:00:27.8]} 39. Bc5 {[%clk 0:00:43.1]} 39... Nd4 {[%clk 0:00:24.1]} 40.
Ke1 {[%clk 0:00:41]} 40... Nc2+ {[%clk 0:00:23.5]} 41. Kd2 {[%clk 0:00:41]}
41... Nd4 {[%clk 0:00:24.9]} 42. g4 {[%clk 0:00:36.5]} 42... hxg4 {[%clk
0:00:20.3]} 43. hxg4 {[%clk 0:00:38.4]} 43... Nb5 {[%clk 0:00:20.1]} 44. Kd3
{[%clk 0:00:38.3]} 44... Nc7 {[%clk 0:00:20.3]} 45. Bc4 {[%clk 0:00:38.2]} 45...
Ne8 {[%clk 0:00:20.7]} 46. Ke4 {[%clk 0:00:36.8]} 46... Nc7 {[%clk 0:00:18.4]}
47. Bb6 {[%clk 0:00:35]} 47... Ne6 {[%clk 0:00:17.7]} 48. f4 {[%clk 0:00:33.9]}
48... g5 {[%clk 0:00:15.4]} 49. f5 {[%clk 0:00:24.4]} 49... Nf4 {[%clk
0:00:15.5]} 50. Be3 {[%clk 0:00:23.9]} 50... Ng2 {[%clk 0:00:15.8]} 51. Bd2
{[%clk 0:00:22.8]} 51... Nh4 {[%clk 0:00:16.3]} 52. Bd3 {[%clk 0:00:21.1]} 52...
Bb2 {[%clk 0:00:16.7]} 53. Bxg5 {[%clk 0:00:21.2]} 53... Bf6 {[%clk 0:00:15.2]}
54. Bf4 {[%clk 0:00:21.2]} 54... Ng2 {[%clk 0:00:15.4]} 55. Bd2 {[%clk
0:00:21.3]} 55... Be7 {[%clk 0:00:14.3]} 56. Bf1 {[%clk 0:00:21.3]} 56... Nh4
{[%clk 0:00:14.5]} 57. g5 {[%clk 0:00:21.3]} 57... f6 {[%clk 0:00:14.6]} 58. g6
{[%clk 0:00:21.5]} 58... Nxg6 {[%clk 0:00:15]} 59. fxg6 {[%clk 0:00:22.2]} 59...
Kxg6 {[%clk 0:00:16.4]} 60. Bh3 {[%clk 0:00:23.7]} 60... Bd6 {[%clk 0:00:17]}
61. Bf5+ {[%clk 0:00:24.8]} 61... Kg7 {[%clk 0:00:17.2]} 62. Kd5 {[%clk
0:00:26]} 62... Be5 {[%clk 0:00:18.7]} 63. Ke6 {[%clk 0:00:27.4]} 63... Bd4
{[%clk 0:00:19.7]} 64. Bf4 {[%clk 0:00:28.1]} 64... Be5 {[%clk 0:00:20.8]} 65.
Bxe5 {[%clk 0:00:26.7]} 65... fxe5 {[%clk 0:00:21.5]} 66. Kxe5 {[%clk
0:00:28.6]} 1/2-1/2

[Event "*** MasterClass Titled Tuesday Blitz"]
[Site "Chess.com"]
[Date "2017.10.03"]
[Round "2"]
[White "1stSecond"]
[Black "Gabrielian_Artur"]
[Result "1-0"]
[WhiteElo "2620"]
[BlackElo "2562"]
[TimeControl "180+2"]
[EndTime "13:25:52 PDT"]
[Termination "1stSecond won on time"]

1. d4 {[%clk 0:03:01.9]} 1... Nf6 {[%clk 0:02:59.9]} 2. c4 {[%clk 0:03:03]} 2...
c5 {[%clk 0:03:01]} 3. d5 {[%clk 0:03:03.6]} 3... e6 {[%clk 0:03:02.2]} 4. Nc3
{[%clk 0:03:04.1]} 4... exd5 {[%clk 0:03:03.4]} 5. cxd5 {[%clk 0:03:06]} 5... d6
{[%clk 0:03:04.7]} 6. Nf3 {[%clk 0:03:07.5]} 6... g6 {[%clk 0:03:05.9]} 7. Nd2
{[%clk 0:03:08.7]} 7... Nbd7 {[%clk 0:03:04.6]} 8. e4 {[%clk 0:03:09.8]} 8...
Bg7 {[%clk 0:03:05.5]} 9. Be2 {[%clk 0:03:11.4]} 9... O-O {[%clk 0:03:06.3]} 10.
O-O {[%clk 0:03:12.6]} 10... Re8 {[%clk 0:03:07.4]} 11. h3 {[%clk 0:03:09.2]}
11... g5 {[%clk 0:03:03.3]} 12. Nc4 {[%clk 0:03:06.2]} 12... Nxe4 {[%clk
0:02:47.7]} 13. Nxe4 {[%clk 0:03:08.1]} 13... Rxe4 {[%clk 0:02:48.7]} 14. Nxd6
{[%clk 0:03:09.6]} 14... Rd4 {[%clk 0:02:49.5]} 15. Qc2 {[%clk 0:02:53]} 15...
Rxd5 {[%clk 0:02:46.5]} 16. Nf5 {[%clk 0:02:23.2]} 16... Ne5 {[%clk 0:02:00.1]}
17. Nxg7 {[%clk 0:02:23.8]} 17... Kxg7 {[%clk 0:02:00.7]} 18. b3 {[%clk
0:02:08.3]} 18... Nc6 {[%clk 0:01:50.4]} 19. Bb2+ {[%clk 0:02:00.1]} 19... Nd4
{[%clk 0:01:51.4]} 20. Bf3 {[%clk 0:01:48.7]} 20... Re5 {[%clk 0:01:45.2]} 21.
Bxd4 {[%clk 0:01:43.7]} 21... cxd4 {[%clk 0:01:44.6]} 22. Rad1 {[%clk
0:01:45.1]} 22... Bf5 {[%clk 0:01:27.4]} 23. Qb2 {[%clk 0:01:45]} 23... Qf6
{[%clk 0:01:23.2]} 24. Qxd4 {[%clk 0:01:41.3]} 24... Re7 {[%clk 0:01:10.1]} 25.
Qxf6+ {[%clk 0:01:37.2]} 25... Kxf6 {[%clk 0:01:10.6]} 26. Rd6+ {[%clk
0:01:38.9]} 26... Kg7 {[%clk 0:01:09.6]} 27. Rc1 {[%clk 0:01:40.3]} 27... Rae8
{[%clk 0:01:07.2]} 28. Rc5 {[%clk 0:01:38.8]} 28... Re5 {[%clk 0:01:04.6]} 29.
Rdd5 {[%clk 0:01:09.8]} 29... Rxd5 {[%clk 0:01:00.7]} 30. Rxd5 {[%clk
0:01:11.7]} 30... Kf6 {[%clk 0:00:55.7]} 31. Ra5 {[%clk 0:01:10.7]} 31... Re1+
{[%clk 0:00:44.6]} 32. Kh2 {[%clk 0:01:11.7]} 32... Rf1 {[%clk 0:00:42.1]} 33.
Kg3 {[%clk 0:01:10.1]} 33... Bg6 {[%clk 0:00:39.5]} 34. Rxa7 {[%clk 0:01:04.3]}
34... h5 {[%clk 0:00:39.9]} 35. h4 {[%clk 0:01:03.9]} 35... gxh4+ {[%clk
0:00:40.3]} 36. Kxh4 {[%clk 0:01:05.8]} 36... Rxf2 {[%clk 0:00:35.6]} 37. Bxb7
{[%clk 0:01:04.5]} 37... Rf4+ {[%clk 0:00:31.3]} 38. Kg3 {[%clk 0:01:03.8]}
38... Rd4 {[%clk 0:00:29.6]} 39. Bf3 {[%clk 0:01:03]} 39... h4+ {[%clk 0:00:30]}
40. Kf2 {[%clk 0:01:03.2]} 40... Rd2+ {[%clk 0:00:30.5]} 41. Ke3 {[%clk
0:01:04.1]} 41... Rb2 {[%clk 0:00:31.5]} 42. Ra4 {[%clk 0:01:00.9]} 42... Bb1
{[%clk 0:00:30.7]} 43. Rxh4 {[%clk 0:00:50.8]} 43... Bxa2 {[%clk 0:00:31.3]} 44.
b4 {[%clk 0:00:52.2]} 44... Be6 {[%clk 0:00:27.5]} 45. Kd3 {[%clk 0:00:48.5]}
45... Ke5 {[%clk 0:00:23.7]} 46. Rh5+ {[%clk 0:00:43.4]} 46... f5 {[%clk
0:00:24.2]} 47. Rh4 {[%clk 0:00:40.4]} 47... f4 {[%clk 0:00:24.7]} 48. Rh5+
{[%clk 0:00:40.4]} 48... Kd6 {[%clk 0:00:17.8]} 49. Rb5 {[%clk 0:00:32]} 49...
Bd7 {[%clk 0:00:16.3]} 50. Rb7 {[%clk 0:00:27.2]} 50... Bf5+ {[%clk 0:00:16.1]}
51. Kc3 {[%clk 0:00:27.2]} 51... Rc2+ {[%clk 0:00:16.2]} 52. Kb3 {[%clk
0:00:28.3]} 52... Rc1 {[%clk 0:00:17.1]} 53. b5 {[%clk 0:00:27.4]} 53... Be6+
{[%clk 0:00:18.4]} 54. Kb4 {[%clk 0:00:27.8]} 54... Rb1+ {[%clk 0:00:18.9]} 55.
Ka5 {[%clk 0:00:25.7]} 55... Bd7 {[%clk 0:00:20.2]} 56. b6 {[%clk 0:00:21.4]}
56... Rb5+ {[%clk 0:00:18.3]} 57. Ka6 {[%clk 0:00:22.6]} 57... Rb2 {[%clk
0:00:18.9]} 58. Rc7 {[%clk 0:00:23.4]} 58... Ra2+ {[%clk 0:00:17.8]} 59. Kb7
{[%clk 0:00:24.6]} 59... Be6 {[%clk 0:00:19.4]} 60. Rc3 {[%clk 0:00:22.1]} 60...
Rb2 {[%clk 0:00:19]} 61. Rc1 {[%clk 0:00:23.1]} 61... Bf5 {[%clk 0:00:18.3]} 62.
Rd1+ {[%clk 0:00:23]} 62... Kc5 {[%clk 0:00:19.5]} 63. Kc7 {[%clk 0:00:24.4]}
63... Bc2 {[%clk 0:00:18.5]} 64. Rd5+ {[%clk 0:00:24.3]} 64... Kc4 {[%clk
0:00:19.5]} 65. b7 {[%clk 0:00:24.5]} 1-0